bitfinex-derivatives/quotes_BTCF0:USTF0_20241120
["timestamp","ask_amount","ask_price","bid_price","bid_amount"]
[1732116313115,0.10053,94498.0,94485.0,0.43784783]
[1732116313318,0.10053,94498.0,94497.0,0.05285]
[1732116314517,0.10053,94498.0,94497.0,0.41365]
[1732116314812,0.3608,94517.0,94498.0,0.37033]
[1732116315013,0.3608,94517.0,94510.0,0.052843]
[1732116315014,0.41364,94517.0,94510.0,0.052843]
[1732116315213,0.3608,94517.0,94502.0,0.43939972]
[1732116315415,0.3608,94507.0,94504.0,0.43939972]
[1732116315612,0.052839,94517.0,94505.0,0.37412947]
[1732116315808,0.05315108,94520.0,94512.0,0.052842]
[1732116316014,0.3608,94516.0,94509.0,0.43939972]
[1732116316202,0.3608,94516.0,94506.0,0.00124]
[1732116316406,0.3608,94516.0,94510.0,0.052843]
[1732116316407,0.03959,94512.0,94510.0,0.052843]
[1732116316609,0.03959,94512.0,94511.0,0.052843]
[1732116317209,0.03959,94512.0,94506.0,0.43939972]
[1732116317425,0.3608,94507.0,94506.0,0.49224472]
[1732116317716,0.03959,94512.0,94506.0,0.49224472]
[1732116317717,0.03959,94512.0,94511.0,0.052843]
[1732116318722,0.0150743,94512.0,94511.0,0.413643]
[1732116319117,0.3608,94544.0,94511.0,0.3608]
[1732116319321,0.052825,94543.0,94522.0,0.54481329]
[1732116319621,0.3608,94544.0,94522.0,0.98346017]
[1732116319916,0.3608,94544.0,94533.0,0.43864688]
[1732116320119,0.3608,94544.0,94536.0,0.43864688]
[1732116320321,0.3608,94544.0,94534.0,0.052829]
[1732116320639,0.3608,94544.0,94537.0,0.052828]
[1732116320824,0.3608,94544.0,94528.0,0.43864688]
[1732116321121,0.3608,94544.0,94537.0,0.052828]
[1732116321322,0.3608,94544.0,94528.0,0.43864688]
[1732116321513,0.3608,94544.0,94536.0,0.052828]
[1732116321818,0.3608,94544.0,94537.0,0.0513]
[1732116322029,0.05290792,94548.0,94537.0,0.0513]
[1732116322030,0.3608,94541.0,94537.0,0.104128]
[1732116322816,0.3608,94551.0,94537.0,0.0513]
[1732116323017,0.052821,94549.0,94537.0,0.0513]
[1732116323327,0.3608,94542.0,94537.0,0.0513]
[1732116323514,0.052827,94539.0,94537.0,0.0513]
[1732116323921,0.3608,94542.0,94523.0,0.05312353]
[1732116324113,0.3608,94528.0,94523.0,0.0557]
[1732116324322,0.3608,94528.0,94512.0,0.36708967]
[1732116324620,1.552826,94541.0,94502.0,0.3608]
[1732116324621,0.413637,94521.0,94510.0,0.05350389]
[1732116324827,0.59765029,94521.0,94510.0,0.05350389]
[1732116325315,2.09765029,94521.0,94503.0,0.0557]
[1732116325510,2.35132943,94521.0,94503.0,0.0557]
[1732116325716,0.05284,94516.0,94494.0,0.12029243]
[1732116326025,0.41364,94516.0,94503.0,0.052847]
[1732116326228,0.41364,94516.0,94496.0,0.05236809]
[1732116326536,0.41364,94516.0,94510.0,0.052843]
[1732116326825,0.41364,94516.0,94512.0,0.052842]
[1732116327123,0.41364,94516.0,94514.0,0.052841]
[1732116327315,0.41268236,94516.0,94514.0,0.052841]
[1732116327720,0.052841,94514.0,94499.0,0.3608]
[1732116327924,0.41268236,94516.0,94512.0,0.052842]
[1732116328225,0.052841,94514.0,94511.0,0.052842]
[1732116328426,0.41268236,94516.0,94499.0,0.3608]
[1732116328427,0.41268236,94516.0,94502.0,0.18364463]
[1732116328623,0.05188236,94516.0,94514.0,0.052841]
[1732116328822,9.435e-05,94520.0,94519.0,0.052838]
[1732116329425,9.435e-05,94520.0,94519.0,0.23823802]
[1732116329629,0.3608,94533.0,94531.0,0.052831]
[1732116330328,0.3608,94533.0,94519.0,0.18540002]
[1732116330535,0.3608,94533.0,94532.0,0.00175539]
[1732116331520,0.3608,94533.0,94532.0,0.05458639]
[1732116332520,0.3608,94554.0,94532.0,0.05458639]
[1732116332728,0.05282,94551.0,94542.0,0.052825]
[1732116332929,0.05282,94551.0,94532.0,0.05458639]
[1732116332930,0.05282,94551.0,94543.0,0.052825]
[1732116333136,0.41291493,94544.0,94543.0,0.052825]
[1732116333433,0.41291493,94544.0,94531.0,0.31755539]
[1732116333632,0.41291493,94544.0,94540.0,0.052826]
[1732116333827,0.41291493,94544.0,94541.0,0.046]
[1732116335434,0.41291493,94544.0,94541.0,0.098825]
[1732116335633,0.41291493,94544.0,94543.0,0.052825]
[1732116336028,0.41291493,94544.0,94543.0,0.05427732]
[1732116336219,0.41291493,94544.0,94543.0,0.00145232]
[1732116336626,0.46573893,94544.0,94543.0,0.00145232]
[1732116337037,0.41291493,94544.0,94543.0,0.00145232]
[1732116337229,0.46573893,94544.0,94543.0,0.00145232]
[1732116337932,0.46573893,94544.0,94512.0,0.00158708]
[1732116337933,0.052841,94513.0,94512.0,0.00158708]
[1732116338235,0.3608,94513.0,94512.0,0.00158708]
[1732116338551,0.3608,94513.0,94512.0,0.05442908]
[1732116338552,0.43486,94513.0,94512.0,0.05442908]
[1732116339138,0.07406,94513.0,94512.0,0.05442908]
[1732116339838,0.00096,94513.0,94512.0,0.37182908]
[1732116340225,0.3608,94523.0,94522.0,0.052836]
[1732116340845,0.05283,94534.0,94526.0,0.052834]
[1732116341137,0.052827,94540.0,94531.0,0.052831]
[1732116341327,0.77494313,94537.0,94531.0,0.052831]
[1732116341523,0.05283,94534.0,94527.0,0.0468]
[1732116341827,0.77494313,94537.0,94529.0,0.052832]
[1732116342328,0.77494313,94537.0,94516.0,0.43813248]
[1732116342329,0.052837,94521.0,94516.0,0.43813248]
[1732116342531,0.23647363,94535.0,94510.0,1.10935073]
[1732116342532,0.3608,94525.0,94514.0,0.43689248]
[1732116342730,0.3608,94515.0,94510.0,0.0468]
[1732116342936,0.052841,94513.0,94501.0,0.0458]
[1732116343132,0.052841,94513.0,94507.0,0.05203221]
[1732116343829,0.052841,94513.0,94500.0,0.43689248]
[1732116344138,0.052841,94513.0,94507.0,0.37416657]
[1732116344528,0.052841,94513.0,94506.0,0.37416657]
[1732116344838,0.052841,94513.0,94496.0,0.0468]
[1732116344839,0.052841,94513.0,94497.0,0.37416657]
[1732116345226,0.052841,94513.0,94498.0,0.37416657]
[1732116345441,0.10698156,94513.0,94505.0,0.052846]
[1732116345637,0.052845,94508.0,94497.0,0.37416657]
[1732116345939,0.3608,94503.0,94502.0,0.052848]
[1732116346142,0.3608,94515.0,94502.0,0.052848]
[1732116346557,0.3608,94515.0,94514.0,0.052841]
[1732116347242,0.3608,94515.0,94514.0,0.42648389]
[1732116347537,0.3608,94530.0,94514.0,0.052841]
[1732116347742,0.052834,94526.0,94510.0,0.18364463]
[1732116348441,0.3608,94521.0,94519.0,0.052838]
[1732116348646,0.41274767,94530.0,94510.0,0.18364463]
[1732116348840,0.3608,94522.0,94520.0,0.052837]
[1732116349035,0.3608,94522.0,94521.0,0.052837]
[1732116349241,0.413632,94530.0,94524.0,0.052835]
[1732116349437,0.413632,94530.0,94525.0,0.0484]
[1732116349438,0.3608,94530.0,94525.0,0.0484]
[1732116349636,0.3608,94541.0,94529.0,0.052832]
[1732116349839,0.05277798,94545.0,94531.0,0.052831]
[1732116349840,0.052824,94545.0,94531.0,0.052831]
[1732116350046,0.3608,94549.0,94531.0,0.052831]
[1732116350244,0.3608,94549.0,94532.0,0.052831]
[1732116350442,0.3608,94549.0,94533.0,0.05283]
[1732116350634,0.3608,94549.0,94545.0,0.052823]
[1732116351940,0.3608,94549.0,94547.0,0.052822]
[1732116352138,0.3608,94549.0,94548.0,0.052822]
[1732116353037,0.3608,94557.0,94543.0,0.05327468]
[1732116353345,0.3608,94557.0,94536.0,0.18364463]
[1732116353346,0.3608,94557.0,94542.0,0.3608]
[1732116353537,0.3608,94557.0,94553.0,0.052819]
[1732116353737,0.3608,94557.0,94542.0,0.3608]
[1732116353738,0.3608,94557.0,94556.0,0.052817]
[1732116354154,0.3608,94557.0,94554.0,0.0463]
[1732116354538,0.3608,94557.0,94555.0,0.052818]
[1732116355035,0.3608,94557.0,94556.0,0.052817]
[1732116355640,0.3608,94574.0,94566.0,0.052812]
[1732116355840,0.3608,94575.0,94570.0,0.052809]
[1732116356042,0.3608,94575.0,94564.0,0.052813]
[1732116356237,0.3608,94575.0,94561.0,0.052814]
[1732116356432,0.052808,94573.0,94563.0,0.052813]
[1732116356642,0.3608,94575.0,94567.0,0.052811]
[1732116356948,0.3608,94573.0,94568.0,0.052811]
[1732116357541,0.07401,94574.0,94568.0,0.052811]
[1732116357847,0.3608,94571.0,94568.0,0.052811]
[1732116358048,0.3608,94571.0,94562.0,0.052814]
[1732116358251,0.3608,94571.0,94558.0,0.48093471]
[1732116358252,0.3608,94571.0,94563.0,0.052813]
[1732116358449,0.07401,94574.0,94558.0,0.48093471]
[1732116358450,0.3608,94564.0,94558.0,0.12013471]
[1732116358747,0.19414471,94574.0,94562.0,0.052814]
[1732116358943,0.3608,94563.0,94555.0,0.0457]
[1732116359143,0.12013471,94562.0,94554.0,0.0463]
[1732116359748,0.17294871,94562.0,94554.0,0.0463]
[1732116360045,0.3608,94563.0,94554.0,0.0463]
[1732116360450,0.3608,94566.0,94557.0,0.052816]
[1732116360753,1.62013471,94570.0,94554.0,0.0463]
[1732116360754,0.3608,94559.0,94555.0,0.052818]
[1732116361050,0.3608,94559.0,94554.0,0.0463]
[1732116361237,0.3608,94557.0,94556.0,0.052817]
[1732116362643,0.3608,94566.0,94554.0,0.0463]
[1732116363054,0.3608,94566.0,94565.0,0.052812]
[1732116363250,0.3608,94566.0,94555.0,0.052818]
[1732116363556,0.3608,94564.0,94554.0,0.0463]
[1732116363748,0.3608,94564.0,94563.0,0.052813]
[1732116364050,0.3608,94564.0,94558.0,0.12013471]
[1732116364051,0.05235759,94573.0,94558.0,0.12013471]
[1732116364252,0.3608,94559.0,94554.0,0.0463]
[1732116364557,0.12013471,94571.0,94554.0,0.0463]
[1732116364558,0.12580239,94574.0,94554.0,0.0463]
[1732116364853,0.05281,94569.0,94561.0,0.052814]
[1732116365053,0.05281,94569.0,94554.0,0.0463]
[1732116365259,0.3608,94564.0,94554.0,0.0463]
[1732116365553,0.12580239,94574.0,94559.0,0.052815]
[1732116365752,0.12580239,94574.0,94569.0,0.05281]
[1732116366053,0.07401,94574.0,94569.0,0.05281]
[1732116366256,0.07401,94574.0,94565.0,0.12013471]
[1732116366451,0.3608,94567.0,94565.0,0.17294671]
[1732116366656,0.07401,94574.0,94567.0,0.052811]
[1732116367241,0.07401,94574.0,94568.0,0.052811]
[1732116367456,0.07401,94574.0,94566.0,0.052812]
[1732116367761,0.07401,94574.0,94571.0,0.052809]
[1732116368251,0.07401,94574.0,94567.0,0.052811]
[1732116368458,0.07401,94574.0,94568.0,0.052811]
[1732116368645,0.07401,94574.0,94569.0,0.05281]
[1732116368846,0.07401,94574.0,94565.0,0.12013471]
[1732116368847,0.052809,94572.0,94565.0,0.12013471]
[1732116369156,0.3608,94567.0,94563.0,0.05331139]
[1732116369465,0.3608,94567.0,94560.0,0.052815]
[1732116369646,0.3608,94567.0,94561.0,0.052814]
[1732116370045,0.413611,94567.0,94561.0,0.052814]
[1732116370254,0.3608,94567.0,94554.0,0.0463]
[1732116370451,0.3608,94567.0,94563.0,0.052813]
[1732116370955,0.3608,94567.0,94560.0,0.12013471]
[1732116371443,0.3608,94567.0,94566.0,0.052812]
[1732116371752,0.3608,94583.0,94564.0,0.3608]
[1732116371956,0.3608,94583.0,94578.0,0.052805]
[1732116372452,0.052803,94581.0,94573.0,0.052808]
[1732116372754,0.052805,94579.0,94573.0,0.052808]
[1732116372944,0.3608,94582.0,94569.0,0.05281]
[1732116373147,0.3608,94582.0,94567.0,0.12013471]
[1732116373356,0.413603,94582.0,94568.0,0.05281]
[1732116373552,0.3608,94582.0,94573.0,0.052808]
[1732116373858,0.3608,94574.0,94573.0,0.052808]
[1732116374059,0.3608,94574.0,94569.0,0.05281]
[1732116374448,0.3608,94574.0,94572.0,0.052808]
[1732116374850,0.3608,94574.0,94567.0,0.1734725]
[1732116375354,0.3608,94574.0,94572.0,0.052808]
[1732116375855,0.07401,94573.0,94572.0,0.052808]
[1732116376158,0.07401,94573.0,94572.0,0.06931472]
[1732116378049,0.43481,94573.0,94572.0,0.06931472]
[1732116378454,0.43481,94573.0,94572.0,0.02431472]
[1732116378658,0.43481,94573.0,94572.0,0.01650672]
[1732116379055,0.43481,94573.0,94567.0,0.1734725]
[1732116379258,0.07401,94573.0,94567.0,0.1734725]
[1732116379447,0.07401,94573.0,94572.0,0.052808]
[1732116379655,0.07401,94573.0,94572.0,0.413608]
[1732116379855,0.05371985,94593.0,94572.0,1.09768981]
[1732116380055,0.3608,94597.0,94588.0,0.12013471]
[1732116380257,0.3608,94597.0,94596.0,0.052795]
[1732116382056,0.2935,94597.0,94596.0,0.052795]
[1732116382453,0.2935,94597.0,94596.0,0.05424655]
[1732116383662,0.2935,94597.0,94596.0,0.10785888]
[1732116384251,0.2935,94597.0,94596.0,0.22799359]
[1732116385069,0.2262,94597.0,94596.0,0.22799359]
[1732116385269,0.057678,94627.0,94602.0,0.052791]
[1732116385458,0.3608,94630.0,94625.0,0.12013471]
[1732116385766,0.052777,94628.0,94625.0,0.12013471]
[1732116385959,0.3608,94639.0,94629.0,0.052777]
[1732116386157,0.46747901,94640.0,94632.0,0.12013471]
[1732116386362,0.01182466,94638.0,94632.0,0.12013471]
[1732116386567,0.01182466,94637.0,94635.0,0.00145155]
[1732116386771,0.07396,94639.0,94635.0,0.00145155]
[1732116386967,0.07396,94639.0,94638.0,0.17290671]
[1732116387657,0.07396,94639.0,94638.0,0.17435826]
[1732116389370,0.07396,94639.0,94638.0,0.12158626]
[1732116390064,0.07396,94639.0,94638.0,0.17435826]
[1732116390569,0.126731,94639.0,94638.0,0.00145155]
[1732116391872,0.05327442,94649.0,94648.0,0.052766]
[1732116392069,0.3608,94664.0,94648.0,0.052766]
[1732116392070,0.3608,94664.0,94649.0,0.052765]
[1732116392272,0.3608,94654.0,94648.0,0.12013471]
[1732116392465,0.3608,94654.0,94650.0,0.052765]
[1732116392662,0.3608,94654.0,94652.0,0.00145155]
[1732116393359,0.052763,94653.0,94652.0,0.00145155]
[1732116393564,0.052764,94652.0,94646.0,0.17290171]
[1732116394070,0.3608,94654.0,94646.0,0.12013471]
[1732116394269,0.3608,94654.0,94653.0,0.12013471]
[1732116394471,0.3729583,94654.0,94653.0,0.12013471]
[1732116394663,0.3729583,94654.0,94648.0,0.052766]
[1732116394870,0.052764,94651.0,94645.0,0.12013471]
[1732116395191,0.052764,94651.0,94643.0,0.052769]
[1732116395192,0.3608,94646.0,94637.0,0.0540069]
[1732116395472,0.3608,94646.0,94637.0,0.0527669]
[1732116395676,0.052771,94640.0,94634.0,0.052773]
[1732116395879,0.3608,94640.0,94634.0,0.052773]
[1732116396172,0.3608,94644.0,94633.0,0.05160293]
[1732116396372,0.3608,94644.0,94628.0,0.3608]
[1732116396373,0.052774,94634.0,94628.0,0.3608]
[1732116396571,0.052775,94632.0,94628.0,0.413577]
[1732116397277,0.3608,94636.0,94628.0,0.41361674]
[1732116397465,0.052777,94629.0,94628.0,0.05281674]
[1732116397667,0.052781,94621.0,94620.0,0.0001096]
[1732116398266,0.10748128,94621.0,94620.0,0.0001096]
[1732116399079,0.052787,94610.0,94597.0,0.3608]
[1732116399374,0.052787,94610.0,94603.0,0.052791]
[1732116399676,0.052787,94610.0,94604.0,0.05388279]
[1732116400177,0.052787,94610.0,94589.0,0.48093471]
[1732116400489,0.06441873,94610.0,94601.0,0.05352392]
[1732116400866,0.052792,94602.0,94601.0,0.05352392]
[1732116401167,0.052792,94601.0,94589.0,0.3608]
[1732116401371,0.052792,94601.0,94590.0,0.0526162]
[1732116401767,0.13843402,94601.0,94596.0,0.052795]
[1732116402379,0.13843402,94601.0,94590.0,0.0526162]
[1732116402576,0.13842345,94601.0,94593.0,0.052796]
[1732116402782,0.13842345,94601.0,94589.0,0.3608]
[1732116402983,0.126782,94601.0,94585.0,0.0534258]
[1732116403182,0.13838268,94601.0,94584.0,9.415e-05]
[1732116403573,0.13838268,94601.0,94591.0,0.052798]
[1732116403878,0.13838268,94601.0,94584.0,9.415e-05]
[1732116404075,0.13838268,94601.0,94600.0,1e-08]
[1732116404076,0.45550268,94601.0,94600.0,1e-08]
[1732116404276,1.95550268,94601.0,94600.0,1e-08]
[1732116405183,1.58559068,94601.0,94600.0,1e-08]
[1732116405387,1.57399,94601.0,94600.0,0.05279301]
[1732116405598,1.93479,94601.0,94600.0,0.05279301]
[1732116405876,0.43479,94601.0,94600.0,0.05279301]
[1732116406780,0.07399,94601.0,94600.0,0.05279301]
[1732116407481,0.07399,94601.0,94600.0,0.41359301]
[1732116408185,8.439e-05,94620.0,94600.0,0.41336743]
[1732116408386,8.439e-05,94620.0,94617.0,0.052783]
[1732116408573,8.439e-05,94620.0,94609.0,0.3608]
[1732116408774,8.439e-05,94620.0,94599.0,0.092693]
[1732116408775,0.3608,94610.0,94601.0,0.052792]
[1732116409097,8.439e-05,94620.0,94599.0,0.0399]
[1732116409571,8.439e-05,94620.0,94606.0,0.3608]
[1732116409777,8.439e-05,94620.0,94612.0,0.052786]
[1732116410087,8.439e-05,94620.0,94606.0,0.5441015]
[1732116410580,0.05286639,94620.0,94614.0,0.3608]
[1732116410785,0.052782,94619.0,94614.0,0.3608]
[1732116410989,8.439e-05,94620.0,94604.0,0.3608]
[1732116411176,0.052786,94613.0,94604.0,0.3608]
[1732116411687,0.052785,94614.0,94604.0,0.3608]
[1732116412086,0.052785,94614.0,94604.0,0.41407045]
[1732116412279,0.052785,94614.0,94605.0,0.05279]
[1732116412479,0.3608,94619.0,94604.0,0.41535045]
[1732116412680,0.3608,94619.0,94604.0,0.41407045]
[1732116412891,0.052783,94618.0,94604.0,0.05327045]
[1732116413179,8.439e-05,94620.0,94599.0,0.0399]
[1732116413375,0.052785,94615.0,94613.0,0.3608]
[1732116413579,8.439e-05,94620.0,94606.0,0.052789]
[1732116413886,8.439e-05,94620.0,94603.0,0.052791]
[1732116414071,0.052786,94613.0,94603.0,0.052791]
[1732116414271,0.052786,94613.0,94599.0,0.27722172]
[1732116414272,0.052786,94613.0,94604.0,0.05279]
[1732116414686,0.052787,94611.0,94604.0,0.05279]
[1732116414889,0.052788,94609.0,94599.0,0.33001472]
[1732116415185,0.05279,94606.0,94599.0,0.09392022]
[1732116415388,0.3608,94608.0,94599.0,0.09392022]
[1732116415588,0.0398,94619.0,94599.0,0.09392022]
[1732116415887,0.05377944,94620.0,94608.0,0.1833015]
[1732116415888,0.01197753,94618.0,94608.0,0.1833015]
[1732116416191,0.052789,94607.0,94605.0,0.3608]
[1732116416377,0.0407,94617.0,94599.0,0.05402022]
[1732116416576,0.052793,94600.0,94588.0,0.052799]
[1732116416777,0.1833015,94613.0,94586.0,0.0415]
[1732116416979,0.052788,94608.0,94594.0,0.3608]
[1732116417781,1.54126001,94617.0,94598.0,0.052794]
[1732116417985,1.593483,94617.0,94596.0,0.052795]
[1732116418173,1.5,94617.0,94602.0,0.3608]
[1732116418374,0.05222728,94624.0,94602.0,0.3608]
[1732116418579,0.3608,94629.0,94609.0,0.1833015]
[1732116418973,0.3608,94629.0,94619.0,0.052782]
[1732116418974,1.5,94628.0,94619.0,0.052782]
[1732116419491,0.3608,94629.0,94619.0,0.413582]
[1732116419675,0.0407,94636.0,94619.0,0.413582]
[1732116419880,1.5,94635.0,94619.0,0.413582]
[1732116420282,0.05266022,94631.0,94619.0,0.413582]
[1732116420481,1.5,94635.0,94619.0,0.413582]
[1732116421287,0.052768,94644.0,94619.0,0.413582]
[1732116421488,0.0395,94649.0,94619.0,0.413582]
[1732116421790,1.5,94648.0,94622.0,0.05278]
[1732116421990,1.5,94648.0,94627.0,0.3608]
[1732116422193,1.5,94648.0,94628.0,0.1833015]
[1732116422391,1.5,94648.0,94635.0,0.3608]
[1732116422692,0.3608,94656.0,94650.0,0.052765]
[1732116423084,1.51251307,94655.0,94650.0,0.052765]
[1732116423285,0.01251307,94654.0,94650.0,0.052765]
[1732116423589,0.11992853,94651.0,94635.0,0.3608]
[1732116423790,0.01257242,94650.0,94635.0,0.3608]
[1732116424092,0.052765,94650.0,94640.0,0.05277]
[1732116424290,0.06532206,94649.0,94635.0,0.3608]
[1732116424591,1.50060001,94655.0,94635.0,0.3608]
[1732116424592,0.052763,94653.0,94635.0,0.3608]
[1732116424780,0.052768,94645.0,94638.0,0.052771]
[1732116424984,0.052769,94644.0,94638.0,0.052771]
[1732116425189,0.052769,94643.0,94638.0,0.052771]
[1732116425582,1.5,94655.0,94635.0,0.41432449]
[1732116425788,0.052764,94653.0,94640.0,0.11992853]
[1732116426088,0.052767,94646.0,94640.0,0.05277]
[1732116426285,1.5,94655.0,94635.0,0.41432449]
[1732116426286,0.052768,94645.0,94641.0,0.05277]
[1732116426590,0.052768,94644.0,94635.0,0.41432449]
[1732116426888,0.3608,94637.0,94613.0,0.23596655]
[1732116427082,0.3608,94637.0,94617.0,0.052783]
[1732116427282,0.052781,94621.0,94617.0,0.052783]
[1732116427481,0.3608,94623.0,94612.0,0.3608]
[1732116427482,0.052786,94613.0,94612.0,0.3608]
[1732116427687,0.052786,94613.0,94610.0,0.00158547]
[1732116427883,0.052787,94611.0,94610.0,0.00158547]
[1732116428982,1.5,94615.0,94610.0,0.00158547]
[1732116429182,0.052787,94611.0,94610.0,0.00158547]
[1732116429585,0.052785,94614.0,94613.0,0.052785]
[1732116430178,1.50056001,94615.0,94614.0,0.052785]
[1732116430383,0.052777,94628.0,94614.0,0.052785]
[1732116430584,0.0415,94635.0,94610.0,0.18476702]
[1732116430785,0.052779,94625.0,94610.0,0.18476702]
[1732116431081,1.50056001,94627.0,94610.0,0.00158547]
[1732116431279,0.052778,94626.0,94610.0,0.00158547]
[1732116431478,0.0119705,94625.0,94610.0,0.00158547]
[1732116431690,0.413587,94611.0,94610.0,0.00158547]
[1732116432486,0.052784,94616.0,94610.0,0.00158547]
[1732116432682,0.05278,94623.0,94622.0,0.05278]
[1732116433087,0.41318385,94627.0,94615.0,0.3608]
[1732116433288,0.0415,94635.0,94626.0,0.052778]
[1732116433494,0.0415,94635.0,94620.0,0.18318155]
[1732116433698,0.052774,94634.0,94631.0,0.052775]
[1732116433891,0.0415,94635.0,94620.0,0.18318155]
[1732116434192,0.3608,94651.0,94642.0,0.052769]
[1732116434193,0.05297075,94643.0,94642.0,0.052769]
[1732116434394,0.00056001,94645.0,94643.0,0.052769]
[1732116434701,0.00056001,94645.0,94638.0,0.052772]
[1732116434702,0.052771,94641.0,94638.0,0.052772]
[1732116434887,0.052771,94641.0,94639.0,0.052771]
[1732116435085,0.052771,94641.0,94631.0,0.3608]
[1732116435086,1.5,94650.0,94631.0,0.3608]
[1732116435394,0.05277,94642.0,94636.0,0.052773]
[1732116435593,0.05277,94642.0,94631.0,0.3608]
[1732116435995,0.3608,94645.0,94631.0,0.3608]
[1732116436297,0.05277,94641.0,94631.0,0.3608]
[1732116436595,0.05277,94641.0,94635.0,0.052773]
[1732116436996,0.05277,94641.0,94636.0,0.052773]
[1732116437189,0.05277,94641.0,94631.0,0.3608]
[1732116437190,0.052767,94646.0,94640.0,0.05277]
[1732116437388,1.5,94652.0,94631.0,0.3608]
[1732116438086,0.052768,94644.0,94637.0,0.052772]
[1732116438281,0.052768,94644.0,94638.0,0.052771]
[1732116438491,0.3608,94646.0,94641.0,0.05277]
[1732116438792,0.01553,94651.0,94632.0,0.052775]
[1732116438992,0.3608,94646.0,94641.0,0.05277]
[1732116439592,0.3608,94646.0,94631.0,0.36934611]
[1732116439794,0.052765,94650.0,94632.0,0.052775]
[1732116439988,0.01240925,94649.0,94632.0,0.052775]
[1732116440183,0.052766,94649.0,94631.0,0.36934611]
[1732116440395,0.052766,94649.0,94643.0,0.05203906]
[1732116440595,0.052766,94649.0,94632.0,0.052775]
[1732116440797,0.052767,94647.0,94631.0,0.36934611]
[1732116440999,0.37633,94651.0,94631.0,0.36934611]
[1732116441299,0.01243023,94650.0,94631.0,0.36934611]
[1732116441499,0.06519623,94649.0,94641.0,0.05277]
[1732116441800,0.06519623,94648.0,94641.0,0.05277]
[1732116442000,0.01243023,94647.0,94641.0,0.05277]
[1732116442301,0.01243023,94647.0,94643.0,0.052769]
[1732116442597,0.052766,94649.0,94644.0,0.052768]
[1732116442987,0.37633,94651.0,94632.0,0.052775]
[1732116442988,0.01242045,94648.0,94632.0,0.052775]
[1732116443187,0.37633,94651.0,94647.0,0.052767]
[1732116443888,0.37633,94651.0,94648.0,0.052766]
[1732116444296,0.01553,94651.0,94650.0,0.052765]
[1732116445307,0.01553,94651.0,94650.0,0.413565]
[1732116445599,0.05197395,94663.0,94658.0,0.05276]
[1732116445802,1.5,94662.0,94658.0,0.05276]
[1732116446000,1.50060001,94662.0,94658.0,0.05276]
[1732116446702,0.00060001,94662.0,94658.0,0.53342629]
[1732116446907,0.3608,94668.0,94667.0,0.052755]
[1732116447205,0.05354652,94670.0,94667.0,0.052755]
[1732116447206,0.05354652,94670.0,94669.0,0.052754]
[1732116447408,1.50056001,94676.0,94667.0,0.11986629]
[1732116447596,1.5,94676.0,94675.0,0.052751]
[1732116448606,0.3608,94678.0,94676.0,0.05275]
[1732116448813,0.3608,94678.0,94667.0,0.11986629]
[1732116449104,0.3608,94678.0,94663.0,0.0396]
[1732116449405,0.052752,94674.0,94666.0,0.052756]
[1732116449607,0.3608,94678.0,94660.0,0.11998272]
[1732116449811,0.3608,94668.0,94660.0,0.00011643]
[1732116450209,0.052756,94667.0,94660.0,0.05287543]
[1732116450411,0.3608,94668.0,94665.0,0.052757]
[1732116450412,0.0130918,94666.0,94665.0,0.052757]
[1732116451703,0.3608,94678.0,94665.0,0.052757]
[1732116451912,0.3608,94678.0,94677.0,0.05275]
[1732116452099,0.01317684,94678.0,94677.0,0.05275]
[1732116452303,0.01317684,94678.0,94672.0,0.11986629]
[1732116452505,0.052748,94681.0,94672.0,0.11986629]
[1732116452506,0.01317684,94677.0,94672.0,0.11986629]
[1732116452705,0.052748,94681.0,94676.0,0.05275]
[1732116452906,1.55352063,94683.0,94672.0,0.11986629]
[1732116453107,1.55296062,94683.0,94682.0,0.052747]
[1732116453414,0.06606217,94683.0,94682.0,0.052747]
[1732116453913,0.05296062,94683.0,94682.0,0.052747]
[1732116454111,0.01323074,94683.0,94682.0,0.052747]
[1732116454310,1.5,94693.0,94679.0,0.11986629]
[1732116454500,0.01328964,94692.0,94680.0,0.052748]
[1732116454705,0.01328964,94691.0,94689.0,0.052743]
[1732116455013,0.01328964,94690.0,94676.0,0.3608]
[1732116455214,0.052744,94688.0,94682.0,0.052747]
[1732116455521,0.01351349,94687.0,94681.0,0.052748]
[1732116455811,0.01351349,94687.0,94676.0,0.3608]
[1732116455812,0.41391027,94694.0,94676.0,0.38190272]
[1732116456006,0.01351679,94693.0,94676.0,0.38190272]
[1732116456205,0.41391027,94694.0,94679.0,0.052749]
[1732116456206,0.052745,94686.0,94679.0,0.052749]
[1732116456405,0.01350036,94685.0,94676.0,0.43644905]
[1732116456608,0.01350036,94684.0,94680.0,0.052748]
[1732116457106,0.01350036,94684.0,94676.0,0.43636905]
[1732116457307,0.01350036,94683.0,94681.0,0.052747]
[1732116457512,0.052745,94687.0,94681.0,0.052747]
[1732116457716,0.01368222,94686.0,94676.0,0.41526633]
[1732116458009,0.052747,94683.0,94678.0,0.052749]
[1732116458223,0.01368222,94682.0,94678.0,0.052749]
[1732116458406,0.01368222,94681.0,94678.0,0.052749]
[1732116458600,0.01368222,94681.0,94676.0,0.41530633]
[1732116458601,0.01368222,94680.0,94679.0,0.052749]
[1732116459308,0.01368222,94680.0,94676.0,0.41530633]
[1732116459505,0.05275,94678.0,94666.0,0.052756]
[1732116459714,0.052754,94670.0,94661.0,0.091858]
[1732116459905,0.01366747,94669.0,94663.0,0.052758]
[1732116460100,0.3608,94674.0,94665.0,0.052756]
[1732116460101,0.01366747,94668.0,94665.0,0.052756]
[1732116460306,0.05275,94677.0,94661.0,0.09220499]
[1732116460501,0.01353742,94676.0,94668.0,0.3608]
[1732116460803,0.01353742,94675.0,94668.0,0.3608]
[1732116461010,0.01353742,94674.0,94668.0,0.3608]
[1732116461211,0.01353742,94673.0,94672.0,0.052753]
[1732116461413,0.01353742,94676.0,94672.0,0.052753]
[1732116461618,0.45518579,94684.0,94674.0,0.052752]
[1732116461619,0.01353742,94675.0,94674.0,0.052752]
[1732116461814,0.01353742,94675.0,94668.0,0.3608]